fUST/lending_fUST_20251010
["ID","MTS","AMOUNT","RATE_DAILY","PERIOD"]
[390595896,1760098248419,-754.37894507,0.00016831,2]
[390595897,1760098248428,-526.0,0.00016841,2]
[390595898,1760098248437,-1041.66666667,0.00016876,2]
[390595899,1760098248446,-160.0,0.00016876,2]
[390595900,1760098248455,-160.0,0.00016876,2]
[390595901,1760098248465,-234.32063665,0.00016876,2]
[390595902,1760098248474,-160.0,0.00016876,2]
[390595903,1760098248483,-417.15472785,0.00016876,2]
[390595904,1760098248492,-298.03512572,0.00016876,2]
[390595905,1760098248501,-172.65316788,0.000169,2]
[390595906,1760098248510,-526.0,0.00016917,2]
[390595907,1760098248519,-526.0,0.00016921,2]
[390595908,1760098248528,-222.63104,0.0001697,2]
[390595909,1760098248536,-222.63104,0.0001697,2]
[390595910,1760098248545,-222.63104,0.0001697,2]
[390595911,1760098248554,-222.63104,0.0001697,2]
[390595912,1760098248563,-151.0,0.0001697,2]
[390595913,1760098248572,-151.0,0.0001697,2]
[390595914,1760098248580,-4260.0,0.0001697,2]
[390595915,1760098248589,-293.014755,0.00016985,2]
[390595916,1760098248598,-293.014755,0.00016985,2]
[390595917,1760098248606,-293.014755,0.00016985,2]
[390595918,1760098248615,-293.014752,0.00016985,2]
[390595919,1760098248624,-151.0,0.00016985,2]
[390595920,1760098248633,-288.002855,0.00016985,2]
[390595921,1760098248642,-288.002855,0.00016985,2]
[390595922,1760098248651,-288.002855,0.00016985,2]
[390595923,1760098248660,-288.002861,0.00016985,2]
[390595924,1760098248669,-159.419536,0.00016985,2]
[390595925,1760098248678,-159.419536,0.00016985,2]
[390595926,1760098248688,-159.419536,0.00016985,2]
[390595927,1760098248697,-159.41954,0.00016985,2]
[390595928,1760098248706,-620.49,0.00016986,2]
[390595929,1760098248715,-628.62,0.00016986,2]
[390595930,1760098248724,-500.0,0.00016986,2]
[390595931,1760098248736,-500.0,0.00016986,2]
[390595932,1760098248746,-500.0,0.00016986,2]
[390595933,1760098248762,-500.0,0.00016986,2]
[390595934,1760098248773,-543.01,0.00016986,2]
[390595935,1760098248782,-672.74,0.00016986,2]
[390595936,1760098248791,-673.96,0.00016986,2]
[390595937,1760098248800,-300.0,0.00016986,2]
[390595938,1760098248809,-500.0,0.00016986,2]
[390595939,1760098248819,-399.08096042,0.00016986,2]
[390595940,1760098248828,-500.0,0.00016986,2]
[390595941,1760098248838,-500.0,0.00016986,2]
[390595942,1760098248847,-500.0,0.00016986,2]
[390595943,1760098248856,-500.0,0.00016986,2]
[390595944,1760098248866,-500.0,0.00016986,2]
[390595945,1760098248875,-500.0,0.00016986,2]
[390595946,1760098248884,-500.0,0.00016986,2]
[390595947,1760098248893,-500.0,0.00016986,2]
[390595948,1760098248902,-500.0,0.00016986,2]
[390595949,1760098248911,-525.82,0.00016986,2]
[390595950,1760098248920,-151.0,0.00016986,2]
[390595951,1760098248929,-152.507168,0.00016986,2]
[390595952,1760098248939,-500.0,0.00016986,2]
[390595953,1760098248948,-500.0,0.00016986,2]
[390595954,1760098248957,-500.0,0.00016986,2]
[390595955,1760098248966,-500.0,0.00016986,2]
[390595956,1760098248975,-500.0,0.00016986,2]
[390595957,1760098248984,-500.0,0.00016986,2]
[390595958,1760098248994,-440.28487698,0.00016986,2]
[390595959,1760098249004,-222.63104,0.00016986,2]
[390595960,1760098249013,-500.0,0.00016986,2]
[390595961,1760098249023,-500.0,0.00016986,2]
[390595962,1760098249032,-222.63104,0.00016986,2]
[390595963,1760098249042,-222.63104,0.00016986,2]
[390595964,1760098249051,-500.0,0.00016986,2]
[390595965,1760098249060,-222.631041,0.00016986,2]
[390595966,1760098249069,-500.0,0.00016986,2]
[390595967,1760098249079,-500.0,0.00016986,2]
[390595968,1760098249088,-500.0,0.00016986,2]
[390595969,1760098249097,-186.26815036,0.00016986,2]
[390595970,1760098249106,-150.2,0.00016986,2]
[390595971,1760098249115,-500.0,0.00016986,2]
[390595972,1760098249124,-500.0,0.00016986,2]
[390595973,1760098249133,-151.0,0.00016986,2]
[390595974,1760098249142,-461.63971521,0.00016986,2]
[390595975,1760098249151,-633.88,0.00016986,2]
[390595976,1760098249160,-500.0,0.00016986,2]
[390595977,1760098249169,-500.0,0.00016986,2]
[390595978,1760098249179,-500.0,0.00016986,2]
[390595979,1760098249188,-500.0,0.00016986,2]
[390595980,1760098249197,-500.0,0.00016986,2]
[390595981,1760098249206,-622.32115347,0.00016986,2]
[390595982,1760098249215,-500.0,0.00016986,2]
[390595983,1760098249224,-812.35,0.00016986,2]
[390595984,1760098249234,-777.46,0.00016986,2]
[390595985,1760098249242,-500.0,0.00016986,2]
[390595986,1760098249251,-313.55483031,0.00016986,2]
[390595987,1760098249260,-500.0,0.00016986,2]
[390595988,1760098249270,-1272.65,0.00016986,2]
[390595989,1760098249279,-880.43,0.00016986,2]
[390595990,1760098249290,-500.0,0.00016986,2]
[390595991,1760098249299,-504.79543064,0.00016986,2]
[390595992,1760098249308,-500.0,0.00016986,2]
[390595993,1760098249317,-500.0,0.00016986,2]
[390595994,1760098249326,-500.0,0.00016986,2]
[390595995,1760098249335,-500.0,0.00016986,2]
[390595996,1760098249343,-500.0,0.00016986,2]
[390595997,1760098249353,-151.0,0.00016986,2]
[390595998,1760098249362,-500.0,0.00016986,2]
[390595999,1760098249371,-497.5791446,0.00016986,2]
[390596000,1760098249380,-395.01,0.00016986,2]
[390596001,1760098249388,-500.0,0.00016986,2]
[390596002,1760098249398,-1433.64,0.00016986,2]
[390596003,1760098249406,-151.0,0.00016986,2]
[390596004,1760098249415,-500.0,0.00016986,2]
[390596005,1760098249424,-986.22,0.00016986,2]
[390596006,1760098249433,-500.0,0.00016986,2]
[390596007,1760098249442,-500.0,0.00016986,2]
[390596008,1760098249451,-500.0,0.00016986,2]
[390596009,1760098249461,-510.19,0.00016986,2]
[390596010,1760098249470,-5504.95,0.00016986,2]
[390596011,1760098249479,-761.1,0.00016986,2]
[390596012,1760098249488,-500.0,0.00016986,2]
[390596013,1760098249497,-546.8273066,0.00016986,2]
[390596014,1760098249506,-500.0,0.00016986,2]
[390596015,1760098249515,-500.0,0.00016986,2]
[390596016,1760098249524,-500.0,0.00016986,2]
[390596017,1760098249533,-500.41532337,0.00016986,2]
[390596018,1760098249542,-500.0,0.00016986,2]
[390596019,1760098249551,-1752.46,0.00016986,2]
[390596020,1760098249560,-500.0,0.00016986,2]
[390596021,1760098249569,-1066.0,0.00016986,2]
[390596022,1760098249578,-589.56,0.00016986,2]
[390596023,1760098249588,-500.0,0.00016986,2]
[390596024,1760098249597,-500.0,0.00016986,2]
[390596025,1760098249605,-1386.79,0.00016986,2]
[390596026,1760098249615,-1733.33,0.00016986,2]
[390596027,1760098249624,-500.0,0.00016986,2]
[390596028,1760098249633,-500.0,0.00016986,2]
[390596029,1760098249642,-500.0,0.00016986,2]
[390596030,1760098249650,-500.0,0.00016986,2]
[390596031,1760098249659,-500.0,0.00016986,2]
[390596032,1760098249668,-500.0,0.00016986,2]
[390596033,1760098249677,-928.09,0.00016986,2]
[390596034,1760098249686,-500.0,0.00016986,2]
[390596035,1760098249696,-500.0,0.00016986,2]
[390596036,1760098249705,-4636.19,0.00016986,2]
[390596037,1760098249714,-500.0,0.00016986,2]
[390596038,1760098249724,-500.0,0.00016986,2]
[390596039,1760098249741,-500.0,0.00016986,2]
[390596040,1760098249751,-1132.8,0.00016986,2]
[390596041,1760098249760,-6422.08,0.00016986,2]
[390596042,1760098249771,-756.82,0.00016986,2]
[390596043,1760098249781,-667.27,0.00016986,2]
[390596044,1760098249791,-708.04,0.00016986,2]
[390596045,1760098249801,-581.56691764,0.00016986,2]
[390596046,1760098249812,-676.06,0.00016986,2]
[390596047,1760098249822,-500.0,0.00016986,2]
[390596048,1760098249831,-500.0,0.00016986,2]
[390596049,1760098249841,-767.53,0.00016986,2]
[390596050,1760098249850,-500.0,0.00016986,2]
[390596051,1760098249860,-1752.1,0.00016986,2]
[390596052,1760098249869,-646.82,0.00016986,2]
[390596053,1760098249878,-730.21,0.00016986,2]
[390596054,1760098249887,-1012.08,0.00016986,2]
[390596055,1760098249896,-1266.87,0.00016986,2]
[390596056,1760098249905,-518.74,0.00016986,2]
[390596057,1760098249915,-959.76,0.00016986,2]
[390596058,1760098249924,-500.0,0.00016986,2]
[390596059,1760098249934,-500.0,0.00016986,2]
[390596060,1760098249943,-500.0,0.00016986,2]
[390596061,1760098249952,-2468.99,0.00016986,2]
[390596062,1760098249961,-2997.3,0.00016986,2]
[390596063,1760098249971,-500.0,0.00016986,2]
[390596064,1760098249980,-500.0,0.00016986,2]
[390596065,1760098249990,-399.42424431,0.00016986,2]
[390596066,1760098250000,-500.0,0.00016986,2]
[390596067,1760098250010,-217.47771137,0.00016986,2]
[390596068,1760098250020,-500.0,0.00016986,2]
[390596069,1760098250030,-366.11509416,0.00016986,2]
[390596070,1760098250039,-500.0,0.00016986,2]
[390596071,1760098250049,-1205.75,0.00016986,2]
[390596072,1760098250058,-500.0,0.00016986,2]
[390596073,1760098250067,-500.0,0.00016986,2]
[390596074,1760098250077,-319.03155097,0.00016986,2]
[390596075,1760098250086,-4258.31,0.00016986,2]
[390596076,1760098250096,-500.0,0.00016986,2]
[390596077,1760098250105,-501.18,0.00016986,2]
[390596078,1760098250115,-1975.39,0.00016986,2]
[390596079,1760098250124,-500.0,0.00016986,2]
[390596080,1760098250134,-500.0,0.00016986,2]
[390596081,1760098250143,-500.0,0.00016986,2]
[390596082,1760098250153,-500.0,0.00016986,2]
[390596083,1760098250162,-1974.88,0.00016986,2]
[390596084,1760098250172,-652.53,0.00016986,2]
[390596085,1760098250187,-937.88,0.00016986,2]
[390596086,1760098250197,-500.0,0.00016986,2]
[390596087,1760098250207,-767.24,0.00016986,2]
[390596088,1760098250217,-500.0,0.00016986,2]
[390596089,1760098250227,-504.74424792,0.00016986,2]
[390596090,1760098250237,-578.1,0.00016986,2]
[390596091,1760098250247,-500.0,0.00016986,2]
[390596092,1760098250256,-879.4,0.00016986,2]
[390596093,1760098250266,-1567.42,0.00016986,2]
[390596094,1760098250275,-2133.25,0.00016986,2]
[390596095,1760098250285,-500.0,0.00016986,2]
[390596096,1760098250294,-751.94,0.00016986,2]
[390596097,1760098250304,-500.0,0.00016986,2]
[390596098,1760098250313,-500.0,0.00016986,2]
[390596099,1760098250322,-508.58,0.00016986,2]
[390596100,1760098250331,-895.3,0.00016986,2]
[390596101,1760098250341,-2412.61,0.00016986,2]
[390596102,1760098250350,-500.0,0.00016986,2]
[390596103,1760098250360,-500.0,0.00016986,2]
[390596104,1760098250369,-743.56,0.00016986,2]
[390596105,1760098250378,-2832.89,0.00016986,2]
[390596106,1760098250388,-500.0,0.00016986,2]
[390596107,1760098250397,-782.31,0.00016986,2]
[390596108,1760098250406,-215.65387175,0.00016986,2]
[390596109,1760098250415,-699.66,0.00016986,2]
[390596110,1760098250424,-581.91,0.00016986,2]
[390596111,1760098250434,-846.54,0.00016986,2]
[390596112,1760098250443,-906.71,0.00016986,2]
[390596113,1760098250452,-238.15149743,0.00016986,2]
[390596114,1760098250461,-500.0,0.00016986,2]
[390596115,1760098250470,-721.8,0.00016986,2]
[390596116,1760098250480,-500.0,0.00016986,2]
[390596117,1760098250491,-500.0,0.00016986,2]
[390596118,1760098250500,-1640.39,0.00016986,2]
[390596119,1760098250510,-513.99,0.00016986,2]
[390596120,1760098250519,-500.0,0.00016986,2]
[390596121,1760098250529,-500.0,0.00016986,2]
[390596122,1760098250542,-168.10077245,0.00017026,2]
[390596123,1760098250551,-526.0,0.00017055,2]
[390596124,1760098250560,-364.86831523,0.00017066,2]
[390596125,1760098250570,-754.37894507,0.00017078,2]
[390596126,1760098250579,-172.65316788,0.000171,2]
[390596127,1760098250589,-3928.4449145,0.00017183,2]
[390596128,1760098250599,-250.0,0.00017222,2]
[390596129,1760098250608,-620.49,0.0001726,2]
[390596130,1760098250618,-628.62,0.0001726,2]
[390596131,1760098250627,-500.0,0.0001726,2]
[390596132,1760098250637,-500.0,0.0001726,2]
[390596133,1760098250646,-500.0,0.0001726,2]
[390596134,1760098250656,-500.0,0.0001726,2]
[390596135,1760098250665,-543.01,0.0001726,2]
[390596136,1760098250674,-672.74,0.0001726,2]
[390596137,1760098250685,-673.96,0.0001726,2]
[390596138,1760098250694,-300.0,0.0001726,2]
[390596139,1760098250704,-500.0,0.0001726,2]
[390596140,1760098250714,-500.0,0.0001726,2]
[390596141,1760098250724,-275.91552209,0.0001726,2]
[390596142,1760098250741,-537.54,0.0001726,2]
[390596143,1760098250750,-367.22,0.0001726,2]
[390596144,1760098250760,-500.0,0.0001726,2]
[390596145,1760098250769,-500.0,0.0001726,2]
[390596146,1760098250778,-346.78162768,0.0001726,2]
[390596147,1760098250788,-500.0,0.0001726,2]
[390596148,1760098250797,-500.0,0.0001726,2]
[390596149,1760098250806,-525.82,0.0001726,2]
[390596150,1760098250816,-500.0,0.0001726,2]
[390596151,1760098250825,-500.0,0.0001726,2]
[390596152,1760098250834,-500.0,0.0001726,2]
[390596153,1760098250844,-500.0,0.0001726,2]
[390596154,1760098250854,-500.0,0.0001726,2]
[390596155,1760098250863,-500.0,0.0001726,2]
[390596156,1760098250872,-500.0,0.0001726,2]
[390596157,1760098250882,-208.18294604,0.0001726,2]
[390596158,1760098250891,-500.0,0.0001726,2]
[390596159,1760098250900,-500.0,0.0001726,2]
[390596160,1760098250910,-500.0,0.0001726,2]
[390596161,1760098250920,-500.0,0.0001726,2]
[390596162,1760098250929,-500.0,0.0001726,2]
[390596163,1760098250938,-500.0,0.0001726,2]
[390596164,1760098250948,-633.88,0.0001726,2]
[390596165,1760098250957,-500.0,0.0001726,2]
[390596166,1760098250967,-500.0,0.0001726,2]
[390596167,1760098250977,-500.0,0.0001726,2]
[390596168,1760098250987,-396.84145666,0.0001726,2]
[390596169,1760098250997,-500.0,0.0001726,2]
[390596170,1760098251007,-812.35,0.0001726,2]
[390596171,1760098251017,-777.46,0.0001726,2]
[390596172,1760098251034,-500.0,0.0001726,2]
[390596173,1760098251048,-500.0,0.0001726,2]
[390596174,1760098251058,-1272.65,0.0001726,2]
[390596175,1760098251068,-880.43,0.0001726,2]
[390596176,1760098251078,-500.0,0.0001726,2]
[390596177,1760098251089,-500.0,0.0001726,2]
[390596178,1760098251099,-598.07177393,0.0001726,2]
[390596179,1760098251109,-500.0,0.0001726,2]
[390596180,1760098251120,-500.0,0.0001726,2]
[390596181,1760098251130,-500.0,0.0001726,2]
[390596182,1760098251140,-1433.64,0.0001726,2]
[390596183,1760098251151,-500.0,0.0001726,2]
[390596184,1760098251161,-986.22,0.0001726,2]
[390596185,1760098251171,-500.0,0.0001726,2]
[390596186,1760098251181,-500.0,0.0001726,2]
[390596187,1760098251192,-510.19,0.0001726,2]
[390596188,1760098251201,-5504.95,0.0001726,2]
[390596189,1760098251211,-761.1,0.0001726,2]
[390596190,1760098251221,-500.0,0.0001726,2]
[390596191,1760098251231,-500.0,0.0001726,2]
[390596192,1760098251241,-500.0,0.0001726,2]
[390596193,1760098251251,-500.0,0.0001726,2]
[390596194,1760098251262,-500.0,0.0001726,2]
[390596195,1760098251272,-1752.46,0.0001726,2]
[390596196,1760098251282,-553.4796337,0.0001726,2]
[390596197,1760098251292,-1066.0,0.0001726,2]
[390596198,1760098251303,-589.56,0.0001726,2]
[390596199,1760098251313,-500.0,0.0001726,2]
[390596200,1760098251323,-500.0,0.0001726,2]
[390596201,1760098251334,-1386.79,0.0001726,2]
[390596202,1760098251345,-1733.33,0.0001726,2]
[390596203,1760098251355,-500.0,0.0001726,2]
[390596204,1760098251365,-161.64,0.0001726,2]
[390596205,1760098251375,-500.0,0.0001726,2]
[390596206,1760098251385,-500.0,0.0001726,2]
[390596207,1760098251395,-500.0,0.0001726,2]
[390596208,1760098251405,-928.09,0.0001726,2]
[390596209,1760098251415,-500.0,0.0001726,2]
[390596210,1760098251425,-500.0,0.0001726,2]
[390596211,1760098251435,-4636.19,0.0001726,2]
[390596212,1760098251446,-500.0,0.0001726,2]
[390596213,1760098251456,-500.0,0.0001726,2]
[390596214,1760098251466,-500.0,0.0001726,2]
[390596215,1760098251475,-1132.8,0.0001726,2]
[390596216,1760098251486,-6422.08,0.0001726,2]
[390596217,1760098251497,-756.82,0.0001726,2]
[390596218,1760098251507,-667.27,0.0001726,2]
[390596219,1760098251517,-708.04,0.0001726,2]
[390596220,1760098251526,-676.06,0.0001726,2]
[390596221,1760098251536,-516.43923959,0.0001726,2]
[390596222,1760098251546,-500.0,0.0001726,2]
[390596223,1760098251555,-767.53,0.0001726,2]
[390596224,1760098251565,-1752.1,0.0001726,2]
[390596225,1760098251575,-646.82,0.0001726,2]
[390596226,1760098251584,-730.21,0.0001726,2]
[390596227,1760098251594,-1012.08,0.0001726,2]
[390596228,1760098251604,-1266.87,0.0001726,2]
[390596229,1760098251613,-959.76,0.0001726,2]
[390596230,1760098251623,-274.00528284,0.0001726,2]
[390596231,1760098251637,-500.0,0.0001726,2]
[390596232,1760098251646,-500.0,0.0001726,2]
[390596233,1760098251656,-2468.99,0.0001726,2]
[390596234,1760098251667,-2997.3,0.0001726,2]
[390596235,1760098251677,-500.0,0.0001726,2]
[390596236,1760098251688,-500.0,0.0001726,2]
[390596237,1760098251699,-500.0,0.0001726,2]
[390596238,1760098251709,-500.0,0.0001726,2]
[390596239,1760098251720,-500.0,0.0001726,2]
[390596240,1760098251732,-1205.75,0.0001726,2]
[390596241,1760098251751,-500.0,0.0001726,2]
[390596242,1760098251761,-500.0,0.0001726,2]
[390596243,1760098251771,-4258.31,0.0001726,2]
[390596244,1760098251781,-500.0,0.0001726,2]
[390596245,1760098251792,-501.18,0.0001726,2]
[390596246,1760098251802,-500.0,0.0001726,2]
[390596247,1760098251812,-1975.39,0.0001726,2]
[390596248,1760098251822,-500.0,0.0001726,2]
[390596249,1760098251832,-500.0,0.0001726,2]
[390596250,1760098251842,-1974.88,0.0001726,2]
[390596251,1760098251852,-652.53,0.0001726,2]
[390596252,1760098251862,-937.88,0.0001726,2]
[390596253,1760098251872,-500.0,0.0001726,2]
[390596254,1760098251882,-767.24,0.0001726,2]
[390596255,1760098251892,-636.12,0.0001726,2]
[390596256,1760098251903,-578.1,0.0001726,2]
[390596257,1760098251913,-500.0,0.0001726,2]
[390596258,1760098251924,-879.4,0.0001726,2]
[390596259,1760098251935,-1567.42,0.0001726,2]
[390596260,1760098252130,-2133.25,0.0001726,2]
[390596261,1760098252158,-500.0,0.0001726,2]
[390596262,1760098252168,-751.94,0.0001726,2]
[390596263,1760098252178,-500.0,0.0001726,2]
[390596264,1760098252188,-365.46772809,0.0001726,2]
[390596265,1760098252197,-508.58,0.0001726,2]
[390596266,1760098252206,-895.3,0.0001726,2]
[390596267,1760098252216,-2412.61,0.0001726,2]
[390596268,1760098252225,-500.0,0.0001726,2]
[390596269,1760098252235,-500.0,0.0001726,2]
[390596270,1760098252245,-743.56,0.0001726,2]
[390596271,1760098252254,-2832.89,0.0001726,2]
[390596272,1760098252264,-365.56170626,0.0001726,2]
[390596273,1760098252273,-782.31,0.0001726,2]
[390596274,1760098252283,-699.66,0.0001726,2]
[390596275,1760098252292,-581.91,0.0001726,2]
[390596276,1760098252302,-846.54,0.0001726,2]
[390596277,1760098252311,-906.71,0.0001726,2]
[390596278,1760098252320,-500.0,0.0001726,2]
[390596279,1760098252329,-721.8,0.0001726,2]
[390596280,1760098252338,-500.0,0.0001726,2]
[390596281,1760098252348,-500.0,0.0001726,2]
[390596282,1760098252356,-1640.39,0.0001726,2]
[390596283,1760098252366,-513.99,0.0001726,2]
[390596284,1760098252375,-391.8516513,0.00017288,2]
[390596285,1760098252385,-172.65316788,0.000173,2]
[390596286,1760098252395,-151.0,0.000173,2]
[390596287,1760098252404,-393.5851531,0.00017307,2]
[390596288,1760098252413,-391.8516513,0.00017307,2]
[390596289,1760098252423,-391.8516513,0.00017307,2]
[390596290,1760098252432,-391.8516513,0.00017307,2]
[390596291,1760098252442,-391.8516513,0.00017307,2]
[390596292,1760098252452,-391.8516513,0.00017307,2]
[390596293,1760098252462,-391.8516513,0.00017307,2]
[390596294,1760098252473,-391.8516513,0.00017307,2]
[390596295,1760098252483,-391.8516513,0.00017307,2]
[390596296,1760098252492,-391.8516513,0.00017307,2]
[390596297,1760098252502,-391.8516513,0.00017307,2]
[390596298,1760098252511,-391.8516513,0.00017307,2]
[390596299,1760098252520,-391.8516513,0.00017307,2]
[390596300,1760098252530,-391.8516513,0.00017307,2]
[390596301,1760098252539,-899.772,0.00017315,2]
[390596302,1760098252549,-170.57967988,0.00017315,2]
[390596303,1760098252559,-754.37894507,0.00017324,2]
[390596304,1760098252569,-600.0,0.00017359,2]
[390596305,1760098252579,-980.0,0.00017367,2]
[390596306,1760098252588,-168.0,0.00017376,2]
[390596307,1760098252597,-630.0,0.00017384,2]
[390596308,1760098252607,-2159.0,0.00017384,2]
[390596309,1760098252616,-172.65316788,0.000174,2]
[390596310,1760098252625,-151.0,0.000174,2]
[390596311,1760098252635,-1525.8373795,0.00017415,2]
[390596312,1760098252644,-500.0,0.00017423,2]
[390596313,1760098252654,-500.0,0.00017423,2]
[390596314,1760098252665,-500.0,0.00017423,2]
[390596315,1760098252675,-627.54677909,0.00017423,2]
[390596316,1760098252687,-500.0,0.00017423,2]
[390596317,1760098252696,-500.0,0.00017423,2]
[390596318,1760098252706,-500.0,0.00017423,2]
[390596319,1760098252715,-500.0,0.00017423,2]
[390596320,1760098252724,-372.10225396,0.00017424,2]
[390596321,1760098252736,-500.0,0.00017424,2]
[390596322,1760098252746,-165.24160476,0.00017424,2]
[390596323,1760098252754,-500.0,0.00017424,2]
[390596324,1760098252765,-500.0,0.00017424,2]
[390596325,1760098252774,-500.0,0.00017424,2]
[390596326,1760098252783,-372.71606127,0.00017424,2]
[390596327,1760098252793,-500.0,0.00017424,2]
[390596328,1760098252803,-500.0,0.00017424,2]
[390596329,1760098252812,-500.0,0.00017424,2]
[390596330,1760098252821,-500.0,0.00017424,2]
[390596331,1760098252830,-500.0,0.00017424,2]
[390596332,1760098252839,-500.0,0.00017424,2]
[390596333,1760098252849,-500.0,0.00017424,2]
[390596334,1760098252859,-500.0,0.00017424,2]
[390596335,1760098252868,-500.0,0.00017424,2]
[390596336,1760098252878,-500.0,0.00017424,2]
[390596337,1760098252887,-500.0,0.00017424,2]
[390596338,1760098252896,-161.86847584,0.00017424,2]
[390596339,1760098252906,-500.0,0.00017424,2]
[390596340,1760098252926,-500.0,0.00017424,2]
[390596341,1760098252935,-157.30324439,0.00017424,2]
[390596342,1760098252945,-500.0,0.00017424,2]
[390596343,1760098252954,-500.86991837,0.00017424,2]
[390596344,1760098252964,-500.0,0.00017424,2]
[390596345,1760098252974,-500.0,0.00017424,2]
[390596346,1760098252984,-500.0,0.00017424,2]
[390596347,1760098252994,-500.0,0.00017424,2]
[390596348,1760098253003,-500.0,0.00017424,2]
[390596349,1760098253013,-319.0,0.00017425,3]
[390596350,1760098253024,-177.41767855,0.00017434,2]
[390596351,1760098253035,-151.0,0.000175,2]
[390596352,1760098253044,-500.0,0.00017534,2]
[390596353,1760098253054,-620.49,0.00017534,2]
[390596354,1760098253065,-628.62,0.00017534,2]
[390596355,1760098253076,-500.0,0.00017534,2]
[390596356,1760098253093,-500.0,0.00017534,2]
[390596357,1760098253103,-500.0,0.00017534,2]
[390596358,1760098253113,-500.0,0.00017534,2]
[390596359,1760098253124,-543.01,0.00017534,2]
[390596360,1760098253134,-672.74,0.00017534,2]
[390596361,1760098253144,-673.96,0.00017534,2]
[390596362,1760098253153,-300.0,0.00017534,2]
[390596363,1760098253163,-500.0,0.00017534,2]
[390596364,1760098253173,-879.37706047,0.00017534,2]
[390596365,1760098253183,-500.0,0.00017534,2]
[390596366,1760098253193,-970.93924237,0.00017534,2]
[390596367,1760098253203,-701.77566692,0.00017534,2]
[390596368,1760098253213,-466.35000001,0.00017534,2]
[390596369,1760098253223,-199.55682446,0.00017534,2]
[390596370,1760098253233,-500.0,0.00017534,2]
[390596371,1760098253243,-500.0,0.00017534,2]
[390596372,1760098253253,-525.82,0.00017534,2]
[390596373,1760098253263,-151.0,0.00017534,2]
[390596374,1760098253273,-152.25446761,0.00017534,2]
[390596375,1760098253282,-151.0,0.00017534,2]
[390596376,1760098253292,-156.7887732,0.00017534,2]
[390596377,1760098253302,-152.12694981,0.00017534,2]
[390596378,1760098253312,-151.73338094,0.00017534,2]
[390596379,1760098253321,-500.0,0.00017534,2]
[390596380,1760098253331,-643.37352129,0.00017534,2]
[390596381,1760098253340,-371.75,0.00017534,2]
[390596382,1760098253349,-500.0,0.00017534,2]
[390596383,1760098253360,-500.0,0.00017534,2]
[390596384,1760098253369,-327.42,0.00017534,2]
[390596385,1760098253379,-151.0,0.00017534,2]
[390596386,1760098253388,-154.52963647,0.00017534,2]
[390596387,1760098253397,-500.0,0.00017534,2]
[390596388,1760098253407,-500.0,0.00017534,2]
[390596389,1760098253416,-500.0,0.00017534,2]
[390596390,1760098253426,-500.0,0.00017534,2]
[390596391,1760098253435,-165.22018724,0.00017534,2]
[390596392,1760098253445,-500.0,0.00017534,2]
[390596393,1760098253454,-500.0,0.00017534,2]
[390596394,1760098253464,-633.88,0.00017534,2]
[390596395,1760098253473,-500.0,0.00017534,2]